bitfinex/quotes_ETHUSD_20230117
["timestamp","ask_amount","ask_price","bid_price","bid_amount"]
[1673934542735,2.61791888,1568.6,1568.5,6.43787175]
[1673934544227,1.66274042,1568.6,1568.5,6.43787175]
[1673934546866,2.84298978,1568.6,1568.5,0.066]
[1673934547155,3.32158206,1568.6,1568.5,0.066]
[1673934548347,5.22878977,1568.6,1568.5,0.066]
[1673934549076,5.29478977,1568.6,1568.4,6.44576246]
[1673934549267,1.66040758,1568.5,1568.4,6.44576246]
[1673934555243,1.66040758,1568.5,1568.4,6.4423384]
[1673934556500,1.18389757,1568.5,1568.4,12.8182584]
[1673934560454,2.61430515,1568.5,1568.4,12.8182584]
[1673934561237,1.43040758,1568.5,1568.4,18.11432724]
[1673934561469,0.066,1568.6,1568.4,19.69620128]
[1673934561679,0.066,1568.6,1568.5,1.224]
[1673934561909,0.066,1568.6,1568.5,13.97502]
[1673934564984,0.95389757,1568.7,1568.5,14.04102]
[1673934565293,0.95389757,1568.7,1568.6,14.154322]
[1673934565451,0.95389757,1568.7,1568.6,14.218322]
[1673934571095,0.95389757,1568.7,1568.6,14.220322]
[1673934574712,2.38430515,1568.8,1568.6,14.220322]
[1673934574957,2.38430515,1568.8,1568.6,12.81622]
[1673934575169,0.95389757,1568.7,1568.6,12.81622]
[1673934592970,0.95389757,1568.7,1568.6,12.81375083]
[1673934595357,2.38430515,1568.7,1568.6,12.81375083]
[1673934596114,1.43040758,1568.7,1568.6,12.81375083]
[1673934596911,0.95409385,1568.7,1568.6,12.81375083]
[1673934597646,2.38450143,1568.7,1568.6,12.81375083]
[1673934599516,1.43040758,1568.7,1568.6,12.81375083]
[1673934607049,2.38531819,1568.7,1568.6,14.39557434]
[1673934608013,1.43040758,1568.7,1568.6,12.81375083]
[1673934612799,0.95490826,1568.7,1568.6,14.39553403]
[1673934613375,0.95490826,1568.7,1568.6,17.47063818]
[1673934620895,0.95490826,1568.7,1568.6,14.39553403]
[1673934625474,0.95490826,1568.7,1568.6,15.61953403]
[1673934625723,0.95490826,1568.8,1568.7,1.0]
[1673934626033,1.49640758,1568.9,1568.7,16.5491832]
[1673934626034,2.45131584,1568.9,1568.7,16.5491832]
[1673934626194,2.45131584,1568.9,1568.7,13.9674]
[1673934626405,0.95490826,1568.8,1568.7,16.86203458]
[1673934626654,0.95490826,1568.8,1568.7,18.44370124]
[1673934626828,2.45131584,1568.9,1568.7,18.44370124]
[1673934627035,2.45131584,1568.9,1568.7,16.86203458]
[1673934628337,1.02090826,1568.9,1568.7,16.86203458]
[1673934628546,1.02090826,1568.9,1568.8,1.68620346]
[1673934628812,1.02090826,1568.9,1568.8,14.43478346]
[1673934629302,2.45131584,1568.9,1568.8,14.43478346]
[1673934630341,1.02090826,1568.9,1568.8,14.43478346]
[1673934630547,2.45131584,1568.9,1568.8,14.43478346]
[1673934630807,1.02090826,1568.9,1568.8,14.43478346]
[1673934631108,2.45131584,1568.9,1568.8,14.43478346]
[1673934631703,1.02090826,1568.9,1568.8,14.43478346]
[1673934632159,2.45131584,1568.9,1568.8,14.43478346]
[1673934632335,1.02090826,1568.9,1568.8,14.43478346]
[1673934634229,1.01690826,1568.9,1568.8,14.43878346]
[1673934634586,0.95490826,1568.9,1568.8,14.50078346]
[1673934638481,0.95490826,1568.9,1568.8,12.81458]
[1673934640574,2.38531584,1568.9,1568.8,12.81458]
[1673934642524,0.95490826,1568.9,1568.8,12.81173979]
[1673934644887,10.73301584,1569.0,1568.8,12.81173979]
[1673934645196,9.30260826,1569.0,1568.8,12.81173979]
[1673934645391,10.73301584,1569.0,1568.8,12.81173979]
[1673934647982,0.95490826,1568.9,1568.8,12.81173979]
[1673934651352,0.95490826,1568.9,1568.8,15.48965377]
[1673934653348,0.95490826,1568.9,1568.8,15.50496868]
[1673934658825,0.95490826,1568.9,1568.8,17.0865681]
[1673934659021,9.77810758,1569.0,1568.8,17.0865681]
[1673934659022,10.73301584,1569.0,1568.8,17.0865681]
[1673934659226,10.73301584,1569.0,1568.8,12.8270547]
[1673934659900,0.95490826,1568.9,1568.8,12.8270547]
[1673934661861,2.38531584,1568.9,1568.8,12.8270547]
[1673934662860,0.95490826,1568.9,1568.8,14.40865028]
[1673934663190,0.95490826,1568.9,1568.8,14.40865782]
[1673934666846,9.30260826,1569.0,1568.8,15.3608528]
[1673934667051,9.30260826,1569.0,1568.9,1.58149531]
[1673934667267,1.02090826,1569.0,1568.9,1.58149531]
[1673934667437,1.02090826,1569.0,1568.9,14.32927531]
[1673934667648,2.45131584,1569.0,1568.9,14.32927531]
[1673934668105,2.45131584,1569.0,1568.9,15.91078443]
[1673934668333,1.02090826,1569.0,1568.9,15.91078443]
[1673934669701,2.45131584,1569.0,1568.9,14.32927531]
[1673934670060,1.49640758,1569.0,1568.9,14.32927531]
[1673934670306,1.02131227,1569.0,1568.9,15.91076042]
[1673934671168,0.066,1569.0,1568.9,15.91076042]
[1673934671957,0.066,1569.0,1568.9,18.24233243]
[1673934672167,0.06305595,1569.0,1568.9,25.56841741]
[1673934672424,0.06305595,1569.0,1568.9,26.79241741]
[1673934672636,0.06305595,1569.0,1568.9,31.77980527]
[1673934673857,0.09089036,1569.1,1568.9,31.84580527]
[1673934674203,0.09089036,1569.1,1569.0,17.51302564]
[1673934674377,0.09089036,1569.1,1569.0,17.51502564]
[1673934675794,0.09089036,1569.1,1569.0,19.50054326]
[1673934676127,0.09089036,1569.1,1569.0,17.51502564]
[1673934677477,0.09089036,1569.1,1569.0,19.49984991]
[1673934677637,0.09089036,1569.1,1569.0,24.94384991]
[1673934678275,0.09089036,1569.1,1569.0,22.95902564]
[1673934679108,0.09089036,1569.1,1569.0,24.9429568]
[1673934680052,0.09089036,1569.1,1569.0,25.89515178]
[1673934680404,0.09089036,1569.1,1569.0,28.05958087]
[1673934681808,0.09089036,1569.1,1569.0,28.12358087]
[1673934685276,0.09089036,1569.1,1569.0,28.1218018]
[1673934687584,0.09089036,1569.1,1569.0,26.13964971]
[1673934688020,0.09089036,1569.1,1569.0,28.12156815]
[1673934688378,0.09089036,1569.1,1569.0,28.12141702]
[1673934691793,0.09089036,1569.1,1569.0,24.91964971]
[1673934692407,0.09089036,1569.1,1569.0,26.90111816]
[1673934692637,0.08836461,1569.1,1569.0,26.90111816]
[1673934694959,0.08836461,1569.1,1569.0,22.56049409]
[1673934695181,0.08836461,1569.1,1569.0,12.81296]
[1673934703256,0.08836461,1569.1,1569.0,12.81031759]
[1673934706405,0.08836461,1569.1,1569.0,14.39161823]
[1673934723659,0.08836461,1569.1,1569.0,1.64730064]
[1673934723964,0.08836461,1569.1,1569.0,14.39426064]
[1673934724120,0.08836461,1569.1,1569.0,16.5662952]
[1673934727234,0.08836461,1569.1,1569.0,14.39426064]
[1673934734362,0.08836461,1569.1,1569.0,15.34645562]
[1673934735202,0.08836461,1569.1,1569.0,14.39426064]
[1673934735436,0.08836461,1569.1,1569.0,15.34645562]
[1673934736471,1.04367688,1569.1,1569.0,14.39426064]
[1673934743551,0.08836461,1569.1,1569.0,15.34645562]
[1673934745276,1.04367688,1569.1,1569.0,15.34645562]
[1673934746136,0.08836461,1569.1,1569.0,15.34645562]
[1673934754920,1.04367688,1569.1,1569.0,14.39426064]
[1673934762685,2.47408446,1569.1,1569.0,14.39426064]
[1673934763062,2.47408446,1569.1,1569.0,12.81296]
[1673934763393,5.54799698,1569.1,1569.0,0.066]
[1673934763605,8.45821347,1569.1,1569.0,0.066]
[1673934763954,13.60449553,1569.1,1569.0,0.06260228]
[1673934764114,15.1294983,1569.1,1569.0,0.06260228]
[1673934764320,16.59994901,1569.1,1569.0,0.06260228]
[1673934764535,17.51375782,1569.1,1569.0,0.06260228]
[1673934765166,18.73775782,1569.1,1569.0,2.28e-06]
[1673934765375,25.11083782,1569.1,1568.6,6.3751]
[1673934765586,25.11083782,1569.1,1568.6,6.4411]
[1673934765587,1.224,1568.7,1568.6,6.4411]
[1673934765805,1.224,1568.7,1568.6,8.02279794]
[1673934766024,1.454,1568.7,1568.6,8.02279794]
[1673934766446,1.454,1568.7,1568.6,6.4411]
[1673934766677,1.454,1568.7,1568.6,8.02280058]
[1673934767065,1.454,1568.7,1568.6,6.4411]
[1673934767318,1.454,1568.7,1568.6,8.02280585]
[1673934767471,1.454,1568.7,1568.6,6.4411]
[1673934768152,1.454,1568.7,1568.6,8.02280048]
[1673934768321,1.454,1568.7,1568.6,6.4411]
[1673934770844,1.454,1568.7,1568.6,12.81621]
[1673934771016,1.224,1568.7,1568.6,14.39785222]
[1673934771172,9.87025595,1568.9,1568.6,14.39785222]
[1673934771379,0.23,1568.8,1568.6,12.81621]
[1673934775082,9.87025595,1568.9,1568.6,15.4680945]
[1673934780136,8.64625595,1568.9,1568.6,15.4680945]
[1673934780327,0.06505595,1568.9,1568.7,1.58151474]
[1673934780542,10.80825595,1569.0,1568.6,15.4680945]
[1673934780752,10.80825595,1569.0,1568.6,17.45119055]
[1673934780937,10.80825595,1569.0,1568.8,19.12287]
[1673934781143,0.06505595,1569.0,1568.8,19.18887]
[1673934781420,11.08895283,1569.1,1568.8,19.18887]
[1673934781596,0.23,1569.0,1568.8,19.18887]
[1673934785774,10.13532056,1569.1,1568.8,19.18887]
[1673934788188,8.91132056,1569.1,1568.8,19.18887]
[1673934788425,8.91132056,1569.1,1568.8,21.107757]
[1673934795503,8.91132056,1569.1,1568.8,19.18887]
[1673934798446,9.86495283,1569.1,1568.8,19.18887]
[1673934800654,3.17763227,1569.0,1568.8,19.18887]
[1673934800812,2.17763227,1569.0,1568.8,6.44029]
[1673934801017,1.004,1568.9,1568.8,0.063733]
[1673934801265,1.42216323,1568.9,1568.8,0.063733]
[1673934802337,2.64616323,1568.9,1568.8,0.063733]
[1673934802704,3.5997955,1568.9,1568.8,0.063733]
[1673934805544,2.8257955,1568.9,1568.8,0.063733]
[1673934805749,2.8257955,1568.9,1568.8,6.438023]
[1673934806391,2.8257955,1568.9,1568.8,0.063733]
[1673934806853,2.8257955,1568.9,1568.8,6.438023]
[1673934809247,1.6017955,1568.9,1568.8,6.438023]
[1673934809458,1.6017955,1568.9,1568.8,0.063733]
[1673934810667,1.6017955,1568.9,1568.8,6.37429]
[1673934810977,1.18363227,1568.9,1568.8,6.37429]
[1673934811291,1.18363227,1568.9,1568.7,12.812863]
[1673934814308,2.38408068,1568.8,1568.7,0.063733]
[1673934814675,1.18363227,1568.8,1568.7,0.063733]
[1673934819089,1.18363227,1568.8,1568.7,0.049733]
[1673934819305,1.18363227,1568.8,1568.5,6.438843]
[1673934819536,0.34836323,1568.7,1568.5,6.438843]
[1673934822983,0.34836323,1568.7,1568.5,12.814353]
[1673934823152,0.23,1568.7,1568.5,12.814353]
[1673934824709,0.23,1568.8,1568.5,12.814353]
[1673934825499,20.59738822,1568.9,1568.5,12.814353]
[1673934825652,20.59738822,1568.9,1568.6,1.58168191]
[1673934825869,20.59738822,1568.9,1568.7,12.7494]
[1673934826659,0.23,1568.8,1568.7,12.7494]
[1673934828899,0.23,1568.8,1568.7,6.438433]
[1673934834858,1.01868822,1568.9,1568.7,12.813133]
[1673934843444,2.44913663,1568.9,1568.7,12.813133]
[1673934847228,2.44513663,1568.9,1568.7,12.813133]
[1673934847482,2.38408068,1568.9,1568.7,12.813133]
[1673934847699,2.38408068,1568.9,1568.7,12.773133]
[1673934847869,0.95363227,1568.8,1568.7,12.773133]
[1673934848236,0.95363227,1568.9,1568.7,14.35475755]
[1673934848545,0.95363227,1568.8,1568.7,12.773133]
[1673934848758,0.95363227,1568.8,1568.7,14.35482165]
[1673934848941,0.95363227,1568.8,1568.7,12.773133]
[1673934850456,0.95363227,1568.8,1568.7,6.398433]
[1673934850591,1.18363227,1568.8,1568.7,6.398433]
[1673934850801,1.69329735,1568.8,1568.7,6.398433]
[1673934852086,2.69329735,1568.8,1568.7,6.398433]
[1673934852284,2.69329735,1568.8,1568.7,0.063733]
[1673934852285,3.17011349,1568.8,1568.7,0.063733]
[1673934852935,5.07737803,1568.8,1568.7,0.063733]
[1673934853184,5.14243398,1568.8,1568.5,14.443223]
[1673934853328,0.9543276,1568.6,1568.5,0.063733]
[1673934853537,2.87844841,1568.6,1568.5,0.063733]
[1673934853886,6.00071295,1568.6,1568.5,0.063733]
[1673934854134,5.09344841,1568.6,1568.5,0.063733]
[1673934854853,6.04707467,1568.6,1568.5,0.063733]
[1673934855065,11.0437699,1568.6,1568.5,0.063733]
[1673934855787,13.38042607,1568.6,1568.5,0.063733]
[1673934855998,11.47316153,1568.6,1568.5,0.063733]
[1673934856623,10.47316153,1568.6,1568.5,0.063733]
[1673934856835,10.99686894,1568.6,1568.5,0.063733]
[1673934857038,7.88024487,1568.6,1568.5,0.063733]
[1673934857253,7.44979646,1568.6,1568.5,0.063733]
[1673934857682,10.56642053,1568.6,1568.5,0.063733]
[1673934857901,11.99686894,1568.6,1568.5,0.063733]
[1673934858217,12.42626057,1568.6,1568.5,0.063733]
[1673934859154,10.99581216,1568.6,1568.5,0.063733]
[1673934859360,12.42626057,1568.6,1568.5,0.063733]
[1673934860518,12.42602806,1568.6,1568.5,0.063733]
[1673934860722,11.47316153,1568.6,1568.5,0.063733]
[1673934860953,12.4288169,1568.6,1568.5,0.059733]
[1673934861162,1.0,1568.5,1568.2,6.44042908]
[1673934861519,0.23,1568.4,1568.2,6.44042908]
[1673934869429,0.212,1568.4,1568.2,6.44042908]
[1673934876833,1.212,1568.4,1568.2,6.44042908]
[1673934877039,0.212,1568.4,1568.2,6.44042908]
[1673934880241,1.212,1568.4,1568.2,6.44042908]
[1673934880396,1.96252235,1568.4,1568.2,6.44042908]
[1673934881655,0.96252235,1568.4,1568.2,6.44042908]
[1673934881982,1.96252235,1568.4,1568.2,6.44042908]
[1673934883706,0.96252235,1568.4,1568.2,6.44042908]
[1673934884965,1.96252235,1568.4,1568.2,6.44042908]
[1673934885460,0.96252235,1568.4,1568.2,6.44042908]
[1673934885673,0.09625223,1568.3,1568.2,6.44042908]
[1673934885887,0.23,1568.3,1568.2,6.44042908]
[1673934886702,1.004,1568.3,1568.2,6.44042908]
[1673934888502,0.23,1568.3,1568.2,6.44042908]
[1673934890006,1.004,1568.3,1568.2,6.44042908]
[1673934890411,0.23,1568.3,1568.2,6.44042908]
[1673934890974,0.23,1568.3,1568.2,12.81715908]
[1673934891267,0.23,1568.3,1568.2,14.39929548]
[1673934891480,0.95259942,1568.4,1568.2,17.31908674]
[1673934891700,0.95259942,1568.4,1568.2,12.81715908]
[1673934893600,0.95259942,1568.4,1568.3,7.95842338]
[1673934893927,1.18259942,1568.4,1568.3,7.95842338]
[1673934894234,1.18259942,1568.4,1568.3,14.33475338]
[1673934894626,0.23,1568.4,1568.3,14.33475338]
[1673934896016,0.23,1568.4,1568.3,15.28694836]
[1673934896521,0.06505595,1568.5,1568.3,17.66624835]
[1673934896730,3.33771295,1568.7,1568.4,3.53778883]
[1673934896731,1.01765537,1568.7,1568.4,3.53778883]
[1673934896903,1.01565537,1568.7,1568.5,14.33311338]
[1673934897117,1.01565537,1568.7,1568.5,20.65541088]
[1673934898331,1.01565537,1568.7,1568.5,20.65309156]
[1673934901170,0.06305595,1568.7,1568.5,20.65830883]
[1673934906517,0.95259942,1568.8,1568.5,20.72204183]
[1673934910755,22.23670378,1568.9,1568.5,20.72204183]
[1673934910891,0.23,1568.8,1568.5,20.72204183]
[1673934912369,20.80625537,1568.9,1568.7,12.7494]
[1673934912573,9.89085537,1568.9,1568.7,12.7494]
[1673934912827,8.93825595,1568.9,1568.7,12.7494]
[1673934913043,9.89085537,1568.9,1568.7,12.7494]
[1673934913834,8.93825595,1568.9,1568.7,12.7494]
[1673934914041,8.93825595,1568.9,1568.7,14.86903742]
[1673934915202,8.93825595,1568.9,1568.7,14.93277042]
[1673934915664,9.89085537,1568.9,1568.7,14.93277042]
[1673934916075,8.93825595,1568.9,1568.7,14.93277042]
[1673934916258,8.93825595,1568.9,1568.7,12.813133]
[1673934916680,9.89085537,1568.9,1568.7,12.813133]
[1673934919087,8.93825595,1568.9,1568.7,12.813133]
[1673934920769,9.89085537,1568.9,1568.7,12.813133]
[1673934921239,8.93825595,1568.9,1568.7,12.81072639]
[1673934926676,9.89085537,1568.9,1568.7,12.81072639]
[1673934932707,11.32130378,1568.9,1568.7,12.81072639]
[1673934933012,0.95259942,1568.8,1568.7,12.81072639]
[1673934933237,1.45939954,1568.8,1568.7,12.81072639]
[1673934934187,0.50680012,1568.8,1568.7,12.81072639]
[1673934934751,1.45939954,1568.8,1568.7,12.81072639]
[1673934935714,1.45939954,1568.8,1568.7,14.3923996]
[1673934935921,0.50680012,1568.8,1568.7,14.3923996]
[1673934937505,0.50680012,1568.8,1568.7,16.96215107]
[1673934938957,0.50680012,1568.8,1568.7,28.51654652]
[1673934939200,0.50680012,1568.8,1568.7,30.41899204]
[1673934940248,0.50680012,1568.8,1568.7,33.53561611]
[1673934941236,0.56438054,1568.9,1568.7,33.53561611]
[1673934941371,0.56438054,1568.9,1568.8,19.11281757]
[1673934941579,0.56438054,1568.9,1568.8,17.53114436]
[1673934941787,0.56438054,1568.9,1568.8,15.74858]
[1673934942459,1.51697996,1568.9,1568.8,15.74858]
[1673934943423,1.45192401,1568.9,1568.8,15.812313]
[1673934944364,0.49932459,1568.9,1568.8,15.812313]
[1673934944734,1.45192401,1568.9,1568.8,15.812313]
[1673934955296,1.45192401,1568.9,1568.8,19.11555511]
[1673934955504,1.45192401,1568.9,1568.8,15.812313]
[1673934960249,1.45192401,1568.9,1568.8,17.39390297]
[1673934960418,1.45192401,1568.9,1568.8,15.812313]
[1673934963387,0.49592715,1568.9,1568.8,17.393888]
[1673934964097,0.49592715,1568.9,1568.8,20.00890493]
[1673934964541,0.49592715,1568.9,1568.8,20.96460038]
[1673934965165,0.49592715,1568.9,1568.8,20.00890493]
[1673934968240,0.49361421,1568.9,1568.8,20.00890493]
[1673934971698,0.49361421,1568.9,1568.8,20.96460038]
[1673934971853,0.49361421,1568.9,1568.8,20.00890493]
[1673934972274,0.49361421,1568.9,1568.8,20.96460038]
[1673934972543,0.49361421,1568.9,1568.8,20.00890493]
[1673934973324,0.49361421,1568.9,1568.8,20.96460038]
[1673934973798,0.49361421,1568.9,1568.8,20.00890493]
[1673934975250,0.49361421,1568.9,1568.8,26.11947633]
[1673934975511,0.49361421,1568.9,1568.8,33.37211148]
[1673934975694,0.49361421,1568.9,1568.8,35.27547475]
[1673934976269,0.49361421,1568.9,1568.8,37.17945691]
[1673934977091,0.08836461,1569.1,1568.8,37.17945691]
[1673934977404,0.08836461,1569.1,1569.0,19.12044]
[1673934977613,0.08836461,1569.1,1569.0,23.702015]
[1673934978095,0.08836461,1569.1,1569.0,23.765748]
[1673934979365,0.08836461,1569.1,1569.0,24.989748]
[1673934981906,0.08836461,1569.1,1569.0,23.408173]
[1673934982125,0.08836461,1569.1,1569.0,26.11474732]
[1673934982288,0.08836461,1569.1,1569.0,27.69604112]
[1673934983777,0.08836461,1569.1,1569.0,26.11474732]
[1673934985760,0.08836461,1569.1,1569.0,26.11996293]
[1673934989536,0.08836461,1569.1,1569.0,24.89596293]
[1673934990505,0.08568804,1569.1,1569.0,24.89596293]
[1673934995867,0.08568804,1569.1,1569.0,28.37824189]
[1673934996071,0.08568804,1569.1,1569.0,29.59024189]
[1673934996351,0.08568804,1569.1,1569.0,32.98481369]
[1673934996500,0.08568804,1569.1,1569.0,36.31413388]
[1673934996879,0.08568804,1569.1,1569.0,36.58315844]
[1673934997179,8.04e-06,1569.1,1569.0,42.14956081]
[1673934997350,0.08087866,1569.2,1569.1,13.68894589]
[1673934997572,0.08087866,1569.2,1569.1,36.50267571]
[1673934997816,0.08087866,1569.2,1569.1,35.07003929]
[1673934997982,0.08087866,1569.2,1569.1,31.40687554]
[1673934998178,0.08087866,1569.2,1569.1,35.46078622]
[1673934998541,0.08087866,1569.2,1569.1,31.7938309]
[1673934999279,0.14593461,1569.3,1569.1,31.7938309]
[1673934999280,0.14593461,1569.3,1569.1,36.89152369]
[1673934999489,0.14593461,1569.3,1569.2,15.74347735]
[1673934999646,0.14593461,1569.3,1569.2,28.48881735]
[1673934999856,0.14593461,1569.3,1569.2,27.48881735]
[1673935001278,0.14593461,1569.3,1569.2,34.19881735]
[1673935001496,0.09374437,1569.4,1569.3,1.0]
[1673935001803,0.09374437,1569.4,1569.3,24.60834101]
[1673935001959,0.09374437,1569.4,1569.3,29.53339004]
[1673935002326,0.09374437,1569.4,1569.3,27.60834101]
[1673935002536,0.09374437,1569.4,1569.3,29.53361751]
[1673935002747,0.09374437,1569.4,1569.3,27.60834101]
[1673935003356,0.09374437,1569.4,1569.3,29.53361763]
[1673935003794,0.09374437,1569.4,1569.3,27.60834101]
[1673935004012,0.09374437,1569.4,1569.3,31.27491241]
[1673935004331,0.08999578,1569.5,1569.3,33.19958569]
[1673935004644,0.08999578,1569.5,1569.4,25.00991839]
[1673935004815,0.08999578,1569.5,1569.4,28.74022279]
[1673935005227,0.08999578,1569.5,1569.4,30.32099914]
[1673935005449,0.08999578,1569.5,1569.4,25.65442774]
[1673935005731,0.08999578,1569.5,1569.4,24.07365139]
[1673935009474,0.08999578,1569.5,1569.4,22.85465139]
[1673935011502,0.08999578,1569.5,1569.4,21.63065139]
[1673935019000,0.08999578,1569.5,1569.4,22.85465139]
[1673935020372,0.08999578,1569.5,1569.4,24.4353614]
[1673935020915,0.08999578,1569.5,1569.4,24.43538632]
[1673935021070,0.08999578,1569.5,1569.4,22.85465139]
[1673935023745,0.08999578,1569.5,1569.4,24.43536975]
[1673935024481,0.08999578,1569.5,1569.4,22.85465139]
[1673935024969,0.08704717,1569.5,1569.4,22.85465139]
[1673935025390,0.08704717,1569.5,1569.4,24.43539146]
[1673935025617,0.08704717,1569.5,1569.4,22.85465139]
[1673935026157,0.08704717,1569.5,1569.4,24.43539636]
[1673935026525,0.08704717,1569.5,1569.4,28.10196776]
[1673935026777,0.08704717,1569.5,1569.4,31.24839899]
[1673935027789,0.08704717,1569.5,1569.4,27.58182759]
[1673935028006,7.17e-06,1569.5,1569.4,31.24839899]
[1673935028482,7.17e-06,1569.5,1569.4,27.58182759]
[1673935028626,7.17e-06,1569.5,1569.4,31.24839899]
[1673935029047,7.17e-06,1569.5,1569.4,27.58182759]
[1673935029681,7.17e-06,1569.5,1569.4,32.202096]
[1673935033820,7.17e-06,1569.5,1569.4,33.63250985]
[1673935034309,7.17e-06,1569.5,1569.4,32.67952038]
[1673935034678,7.17e-06,1569.5,1569.4,31.45552038]
[1673935035690,7.17e-06,1569.5,1569.4,33.35950254]
[1673935037499,7.17e-06,1569.5,1569.4,31.45552038]
[1673935037715,7.17e-06,1569.5,1569.4,33.35950254]
[1673935038682,7.17e-06,1569.5,1569.4,29.69293114]
[1673935038840,7.17e-06,1569.5,1569.4,27.78894898]
[1673935039500,7.17e-06,1569.5,1569.4,29.01294898]
[1673935040356,7.17e-06,1569.5,1569.4,32.67952038]
[1673935041146,7.17e-06,1569.5,1569.4,29.01294898]
[1673935041352,7.17e-06,1569.5,1569.4,24.81272958]
[1673935041566,7.17e-06,1569.5,1569.4,23.38160819]
[1673935055822,7.17e-06,1569.5,1569.4,23.37783095]
[1673935056509,7.17e-06,1569.5,1569.4,22.42347603]
[1673935061895,7.17e-06,1569.5,1569.4,23.37783095]
[1673935062087,7.17e-06,1569.5,1569.4,22.42347603]
[1673935062876,7.17e-06,1569.5,1569.4,19.3106292]
[1673935063078,7.17e-06,1569.5,1569.4,17.38819797]
[1673935068678,7.17e-06,1569.5,1569.4,15.807453]
[1673935070558,1.31999121,1569.5,1569.4,0.063733]
[1673935070737,3.27259063,1569.5,1569.4,0.063733]
[1673935070947,2.50259063,1569.5,1569.4,0.063733]
[1673935072348,2.50259063,1569.5,1569.3,3.0]
[1673935072565,1.22,1569.4,1569.3,3.0]
[1673935072739,1.57095906,1569.4,1569.3,3.0]
[1673935073153,1.57095906,1569.4,1569.2,0.063733]
[1673935073371,2.52355848,1569.4,1569.2,0.063733]
[1673935073986,1.454,1569.3,1569.2,0.063733]
[1673935078398,1.454,1569.3,1569.1,6.57657889]
[1673935078609,1.224,1569.2,1569.1,6.57657889]
[1673935078869,1.224,1569.2,1569.1,8.15772532]
[1673935080855,1.63695906,1569.4,1569.1,15.48516024]
[1673935081064,1.63695906,1569.4,1569.2,7.95362643]
[1673935081276,1.63695906,1569.4,1569.2,6.37248]
[1673935081681,1.63695906,1569.4,1569.2,12.74515]
[1673935085409,1.63695906,1569.4,1569.2,6.37248]
[1673935086327,0.77784107,1569.2,1569.1,0.20351889]
[1673935086679,3.21584107,1569.2,1569.1,0.20351889]
[1673935087274,3.21584107,1569.2,1569.1,0.13978589]
[1673935089158,1.99584107,1569.2,1569.1,0.13978589]
[1673935089364,1.99584107,1569.2,1569.1,6.51286589]
[1673935090646,1.22184107,1569.2,1569.1,6.51286589]
[1673935090993,1.22184107,1569.2,1569.1,14.4671069]
[1673935090994,0.00384107,1569.2,1569.1,14.4671069]
[1673935091522,0.00123384,1569.2,1569.1,14.4671069]
[1673935092933,0.00123384,1569.2,1569.1,14.4711069]
[1673935093151,0.00123384,1569.2,1569.1,14.5308399]
[1673935093353,1.22,1569.4,1569.1,14.39105401]
[1673935093562,1.22,1569.4,1569.1,12.809893]
[1673935095302,2.31753906,1569.4,1569.1,12.809893]
[1673935096555,1.22,1569.4,1569.1,12.809893]
[1673935097405,1.22,1569.4,1569.2,1.58110349]
[1673935097565,1.22,1569.4,1569.2,6.37259]
[1673935097927,1.22,1569.4,1569.2,6.436323]
[1673935099239,10.97939063,1569.5,1569.2,6.436323]
[1673935099452,1.09793906,1569.4,1569.2,6.436323]
[1673935102224,12.40983904,1569.5,1569.2,6.436323]
[1673935102445,10.97939063,1569.5,1569.2,6.436323]
[1673935105148,12.40983904,1569.5,1569.2,6.436323]
[1673935105489,10.97939063,1569.5,1569.2,6.436323]
[1673935106646,10.97939063,1569.5,1569.3,1.58104388]
[1673935107011,10.97939063,1569.5,1569.2,6.436323]
[1673935107224,12.40983904,1569.5,1569.2,7.39067792]
[1673935108452,12.40983904,1569.5,1569.3,1.58105797]
[1673935109281,11.18583904,1569.5,1569.3,1.58105797]
[1673935110498,0.95259942,1569.4,1569.3,1.58105797]
[1673935110990,0.95259942,1569.4,1569.2,7.39067792]
[1673935110991,0.95259942,1569.4,1569.2,6.436323]
[1673935111154,11.078855,1569.5,1569.3,1.5810741]
[1673935111325,13.60363034,1569.5,1569.3,1.5810741]
[1673935112536,0.95259942,1569.4,1569.3,1.5810741]
[1673935112708,9.64840659,1569.5,1569.3,7.9533341]
[1673935112927,9.64840659,1569.5,1569.3,6.37226]
[1673935113337,9.64840659,1569.5,1569.3,7.32661492]
[1673935113550,9.64840659,1569.5,1569.4,1.58095972]
[1673935113777,1.01860659,1569.5,1569.4,1.58095874]
[1673935113965,1.01860659,1569.5,1569.4,3.10894211]
[1673935113966,0.06600717,1569.5,1569.4,3.10894211]
[1673935114191,0.06600717,1569.5,1569.4,15.85266211]
[1673935115356,0.06328444,1569.5,1569.4,15.85266211]
[1673935117097,12.05351771,1569.6,1569.4,15.91639511]
[1673935117358,12.05351771,1569.6,1569.4,14.33543637]
[1673935117731,1.13311771,1569.6,1569.4,14.33543637]
[1673935121625,0.18051829,1569.6,1569.5,7.80499364]
[1673935126354,0.18051829,1569.6,1569.5,1.43354364]
[1673935126563,0.18051829,1569.6,1569.4,14.33543637]
[1673935127034,0.11923385,1569.6,1569.4,14.33543637]
[1673935127714,0.11923385,1569.6,1569.4,7.96357637]
[1673935129659,0.11923385,1569.6,1569.4,0.063733]
[1673935129834,1.07183327,1569.6,1569.4,0.063733]
[1673935135948,2.50228168,1569.6,1569.4,0.063733]
[1673935136124,1.07183327,1569.6,1569.3,21.96116792]
[1673935136331,1.07183327,1569.6,1569.4,9.5335735]
[1673935137123,0.11923385,1569.6,1569.4,12.87529076]
[1673935137332,0.11923385,1569.6,1569.4,14.79772199]
[1673935138326,0.11923385,1569.6,1569.4,21.16958199]
[1673935139319,0.11923385,1569.6,1569.4,24.28620606]
[1673935139534,0.11923385,1569.6,1569.5,1.58077947]
[1673935139747,0.11923385,1569.6,1569.5,17.00581352]
[1673935140921,0.11923385,1569.6,1569.5,20.00581352]
[1673935144268,0.11723385,1569.6,1569.5,20.06954652]
[1673935147549,0.11506894,1569.6,1569.5,22.45502283]
[1673935147876,0.11506894,1569.6,1569.5,21.50066791]
[1673935148397,0.11506894,1569.6,1569.5,23.42309914]
[1673935148803,0.11506894,1569.6,1569.5,24.37715861]
[1673935148993,0.11506894,1569.6,1569.5,23.43739832]
[1673935149397,0.11506894,1569.6,1569.5,22.46916093]
[1673935149607,0.11506894,1569.6,1569.5,22.96047077]
[1673935150556,0.11506894,1569.6,1569.5,24.39159216]
[1673935151203,0.11506894,1569.6,1569.5,23.43739832]
[1673935153553,0.11506894,1569.6,1569.5,22.46854046]
[1673935153770,0.11506894,1569.6,1569.5,24.39097169]
[1673935154293,0.11506894,1569.6,1569.5,24.3909736]
[1673935154600,0.11506894,1569.6,1569.5,23.43739832]
[1673935154818,0.11506894,1569.6,1569.5,22.46854735]
[1673935155130,0.11506894,1569.6,1569.5,31.17417405]
[1673935155448,0.10287266,1569.7,1569.6,1.87862318]
[1673935155670,0.10287266,1569.7,1569.6,20.61987774]